[Event "Najdorf Memorial-A 2022"]
[Site "Warsaw"]
[Date "2022.07.11"]
[Round "3.18"]
[White "Haliniak, Wojciech"]
[Black "Kowalczyk, Adam"]
[Result "1-0"]
[ECO "B40"]
[WhiteElo "1827"]
[BlackElo "1944"]
[Annotator "ChessBase"]
[PlyCount "59"]
[EventDate "2022.07.09"]
[EventType "swiss"]
[EventCountry "POL"]
[SourceTitle "playchess.com"]
[Source "ChessBase"]
[SourceQuality "1"]
[TimeControl "40/5400+30:1800+30"]

1. e4 {[%emt 0:00:05]} c5 {[%emt 0:00:16]} 2. Nf3 {[%emt 0:00:14]} e6 {[%emt 0:00:05]} 3. d4 {[%emt 0:00:23]} cxd4 {[%emt 0:00:05]} 4. Nxd4 {[%emt 0:00:07]} Nf6 {[%emt 0:00:05]} 5. Bd3 {[%emt 0:00:18]} Nc6 {[%emt 0:00:39]} 6. Be3 {[%emt 0:00:33]} d5 {[%emt 0:03:34]} 7. Nxc6 {[%emt 0:04:36]} bxc6 {[%emt 0:00:29]} 8. exd5 {[%emt 0:04:47]} cxd5 {[%emt 0:02:14]} 9. O-O {[%emt 0:02:14]} Qc7 {[%emt 0:20:15]} 10. Nc3 {[%emt 0:11:37]} a6 {[%emt 0:00:51]} 11. Na4 {[%emt 0:01:14]} Rb8 {[%emt 0:01:35]} 12. c4 {[%emt 0:03:12]} Bd7 {[%emt 0:18:58]} 13. Rc1 {[%emt 0:17:38]} Qa5 {[%emt 0:30:02]} 14. Nc3 {[%emt 0:00:17]} dxc4 {[%emt 0:03:05]} 15. Bxc4 {[%emt 0:00:31]} Rxb2 {[%emt 0:00:08]} 16. Bb3 {[%emt 0:01:53]} Ba3 {[%emt 0:00:13]} 17. Nb1 {[%emt 0:23:44]} Rxb3 {[%emt 0:02:53]} 18. Nxa3 {[%emt 0:00:07]} Rxa3 {[%emt 0:00:30]} 19. Bc5 {[%emt 0:00:18]} Ne4 {[%emt 0:10:09]} 20. Bxa3 {[%emt 0:02:03]} Qxa3 {[%emt 0:00:01]} 21. Qg4 {[%emt 0:00:23]} f5 {[%emt 0:00:06]} 22. Qxg7 {[%emt 0:00:25]} Qf8 {[%emt 0:00:05]} 23. Qe5 {[%emt 0:03:05]} Qf6 {[%emt 0:01:52]} 24. Qb8+ {[%emt 0:00:52]} Ke7 {[%emt 0:01:30]} 25. Qb4+ {[%emt 0:00:32]} Ke8 {[%emt 0:01:35]} 26. f3 {[%emt 0:00:57]} Ng5 {[%emt 0:00:35]} 27. Rfd1 {[%emt 0:02:04]} Rg8 {[%emt 0:00:43]} 28. Rxd7 {[%emt 0:03:57]} Kxd7 {[%emt 0:00:54]} 29. Qb7+ {[%emt 0:00:17]} Kd6 {[%emt 0:00:04]} 30. Qc7+ {[%emt 0:00:13]} 1-0

[Event "Najdorf Memorial-A 2022"]
[Site "Warsaw"]
[Date "2022.07.11"]
[Round "3.19"]
[White "Michalska, Aleksandra"]
[Black "Ratajczak, Hubert"]
[Result "1/2-1/2"]
[ECO "B24"]
[WhiteElo "1814"]
[BlackElo "1943"]
[Annotator "ChessBase"]
[PlyCount "220"]
[EventDate "2022.07.09"]
[EventType "swiss"]
[EventCountry "POL"]
[SourceTitle "playchess.com"]
[Source "ChessBase"]
[SourceQuality "1"]
[TimeControl "40/5400+30:1800+30"]

1. e4 {[%emt 0:00:04]} c5 {[%emt 0:00:07]} 2. Nc3 {[%emt 0:01:15]} Nc6 {[%emt 0:00:23]} 3. Bb5 {[%emt 0:00:49]} Nd4 {[%emt 0:00:53]} 4. Bc4 {[%emt 0:01:36]} e6 {[%emt 0:01:18]} 5. Nge2 {[%emt 0:02:01]} Nf6 {[%emt 0:02:41]} 6. d3 {[%emt 0:03:35]} a6 {[%emt 0:02:33]} 7. Nxd4 {[%emt 0:05:41]} cxd4 8. Ne2 {[%emt 0:00:13]} Bc5 {[%emt 0:02:07]} 9. Bb3 {[%emt 0:03:10]} d5 {[%emt 0:04:29]} 10. f3 {[%emt 0:05:45]} Rg8 {[%emt 0:14:09]} 11. Bg5 {[%emt 0:10:21]} h6 {[%emt 0:10:18]} 12. Bxf6 {[%emt 0:06:52]} Qxf6 {[%emt 0:00:53]} 13. Qd2 dxe4 {[%emt 0:04:32]} 14. fxe4 {[%emt 0:08:35]} Bd7 {[%emt 0:05:39]} 15. g3 {[%emt 0:03:57]} a5 {[%emt 0:02:25]} 16. Rf1 {[%emt 0:04:31]} Qe5 {[%emt 0:00:29]} 17. a4 {[%emt 0:04:19]} g5 {[%emt 0:01:53]} 18. Rc1 {[%emt 0:07:10]} b5 {[%emt 0:12:39]} 19. Ra1 {[%emt 0:02:00]} b4 {[%emt 0:01:22]} 20. Ng1 {[%emt 0:03:21]} Ke7 {[%emt 0:06:04]} 21. Qe2 {[%emt 0:02:24]} Raf8 {[%emt 0:04:37]} 22. Nf3 {[%emt 0:01:24]} Qd6 {[%emt 0:00:41]} 23. Nd2 {[%emt 0:01:50]} g4 {[%emt 0:03:55]} 24. Nc4 {[%emt 0:02:52]} Qc7 {[%emt 0:00:01]} 25. Qf2 {[%emt 0:00:20]} Rg6 {[%emt 0:02:32]} 26. Qf4 {[%emt 0:01:29]} Qxf4 {[%emt 0:03:00]} 27. gxf4 {[%emt 0:01:42]} g3 {[%emt 0:04:21]} 28. hxg3 {[%emt 0:01:50]} Rxg3 {[%emt 0:00:02]} 29. Rh1 {[%emt 0:02:06]} Rfg8 {[%emt 0:00:55]} 30. Ke2 {[%emt 0:05:24]} Rg2+ {[%emt 0:00:23]} 31. Ke1 {[%emt 0:00:37]} h5 {[%emt 0:02:27]} 32. Rd1 {[%emt 0:01:03]} Rh8 {[%emt 0:03:15]} 33. Rd2 {[%emt 0:00:47]} Rg4 {[%emt 0:00:31]} 34. Rf2 {[%emt 0:01:48]} Bd6 {[%emt 0:00:21]} 35. e5 {[%emt 0:03:16]} Bc7 {[%emt 0:00:01]} 36. Rh3 {[%emt 0:01:05]} Bc6 {[%emt 0:01:06]} 37. Nd2 {[%emt 0:00:35]} f6 {[%emt 0:01:18]} 38. exf6+ {[%emt 0:01:18]} Kxf6 {[%emt 0:00:01]} 39. Rfh2 {[%emt 0:01:27]} Bxf4 {[%emt 0:01:27]} 40. Rf2 {[%emt 0:00:00]} e5 {[%emt 0:00:00]} 41. Ne4+ {[%emt 0:02:04]} Bxe4 {[%emt 0:01:57]} 42. dxe4 {[%emt 0:00:02]} Kg6 {[%emt 0:01:56]} 43. Kf1 {[%emt 0:05:59]} h4 {[%emt 0:03:32]} 44. Be6 {[%emt 0:01:10]} Rg3 {[%emt 0:00:25]} 45. Rf3 {[%emt 0:02:20]} Kg5 {[%emt 0:02:00]} 46. c3 {[%emt 0:04:12]} bxc3 {[%emt 0:00:31]} 47. bxc3 {[%emt 0:00:05]} Rh6 {[%emt 0:00:13]} 48. Bf5 {[%emt 0:02:05]} Rb6 {[%emt 0:01:19]} 49. cxd4 {[%emt 0:00:27]} Rb1+ {[%emt 0:02:01]} 50. Ke2 {[%emt 0:00:50]} Rg2+ {[%emt 0:01:00]} 51. Kd3 {[%emt 0:00:22]} Rd2+ {[%emt 0:00:01]} 52. Kc4 {[%emt 0:00:19]} Rxd4+ {[%emt 0:00:19]} 53. Kc5 {[%emt 0:00:23]} Bg3 {[%emt 0:02:37]} 54. Rfxg3+ {[%emt 0:01:10]} hxg3 {[%emt 0:00:07]} 55. Rxg3+ {[%emt 0:00:01]} Kf4 {[%emt 0:01:06]} 56. Rg4+ {[%emt 0:01:59]} Kf3 {[%emt 0:00:22]} 57. Rh4 {[%emt 0:00:31]} Rxa4 {[%emt 0:00:58]} 58. Kd5 {[%emt 0:00:23]} Rb5+ {[%emt 0:01:59]} 59. Kc6 {[%emt 0:00:42]} Rab4 {[%emt 0:01:49]} 60. Kd6 {[%emt 0:00:52]} a4 {[%emt 0:02:13]} 61. Rh3+ {[%emt 0:02:53]} Kf4 {[%emt 0:00:29]} 62. Rh4+ {[%emt 0:00:39]} Ke3 {[%emt 0:00:08]} 63. Rh1 {[%emt 0:00:40]} a3 {[%emt 0:00:42]} 64. Rh3+ {[%emt 0:00:04]} Kd4 {[%emt 0:01:45]} 65. Rxa3 {[%emt 0:00:06]} Rb6+ {[%emt 0:00:36]} 66. Ke7 {[%emt 0:00:38]} Rh6 {[%emt 0:01:27]} 67. Ra7 {[%emt 0:01:08]} Ke3 {[%emt 0:05:02]} 68. Kf7 {[%emt 0:02:04]} Kf4 {[%emt 0:00:44]} 69. Kg7 {[%emt 0:00:53]} Kg5 {[%emt 0:01:19]} 70. Re7 {[%emt 0:01:21]} Rb5 {[%emt 0:01:00]} 71. Rf7 {[%emt 0:02:06]} Rhb6 {[%emt 0:03:56]} 72. Bd7 {[%emt 0:03:20]} Rc5 {[%emt 0:00:47]} 73. Bf5 {[%emt 0:00:47]} Rbc6 {[%emt 0:00:56]} 74. Rf8 {[%emt 0:01:26]} Rc7+ {[%emt 0:00:11]} 75. Kh8 {[%emt 0:00:12]} R5c6 {[%emt 0:01:07]} 76. Rg8+ {[%emt 0:01:24]} Kh6 {[%emt 0:00:19]} 77. Re8 {[%emt 0:00:22]} Rb7 {[%emt 0:01:10]} 78. Kg8 {[%emt 0:00:57]} Rcb6 {[%emt 0:00:23]} 79. Rxe5 {[%emt 0:00:51]} Rf6 {[%emt 0:01:37]} 80. Re8 {[%emt 0:00:43]} Rg7+ {[%emt 0:00:29]} 81. Kh8 {[%emt 0:00:07]} Re7 {[%emt 0:00:21]} 82. Rd8 {[%emt 0:01:39]} Ref7 {[%emt 0:00:18]} 83. Kg8 {[%emt 0:00:10]} Rg7+ {[%emt 0:00:04]} 84. Kh8 {[%emt 0:00:04]} Re7 {[%emt 0:00:18]} 85. Kg8 {[%emt 0:00:15]} Kg5 {[%emt 0:00:26]} 86. Rc8 {[%emt 0:01:08]} Kh6 {[%emt 0:00:26]} 87. Rd8 {[%emt 0:00:09]} Rg7+ {[%emt 0:00:09]} 88. Kh8 {[%emt 0:00:07]} Rgf7 {[%emt 0:00:03]} 89. Kg8 {[%emt 0:00:15]} Rg7+ {[%emt 0:00:28]} 90. Kh8 {[%emt 0:00:05]} Rg1 {[%emt 0:00:21]} 91. Re8 {[%emt 0:00:25]} Rg5 {[%emt 0:00:39]} 92. Re6 {[%emt 0:03:50]} Rxe6 {[%emt 0:00:27]} 93. Bxe6 {[%emt 0:00:01]} Re5 {[%emt 0:00:06]} 94. Bd5 {[%emt 0:00:46]} Re8+ {[%emt 0:00:06]} 95. Bg8 {[%emt 0:00:06]} Rxe4 {[%emt 0:00:04]} 96. Bf7 {[%emt 0:00:11]} Rh4 {[%emt 0:00:39]} 97. Kg8 {[%emt 0:00:22]} Rg4+ {[%emt 0:00:19]} 98. Kf8 {[%emt 0:00:21]} Kg5 {[%emt 0:00:10]} 99. Ke7 {[%emt 0:00:18]} Re4+ {[%emt 0:00:16]} 100. Be6 {[%emt 0:00:19]} Re5 {[%emt 0:00:14]} 101. Kf7 {[%emt 0:00:50]} Rb5 {[%emt 0:00:23]} 102. Bc4 {[%emt 0:00:20]} Rb6 {[%emt 0:00:18]} 103. Ke7 {[%emt 0:00:21]} Kf5 {[%emt 0:00:14]} 104. Kd7 {[%emt 0:00:17]} Ke5 {[%emt 0:00:18]} 105. Ba2 {[%emt 0:00:18]} Rb7+ {[%emt 0:00:38]} 106. Kc6 {[%emt 0:00:19]} Rb2 {[%emt 0:00:19]} 107. Bg8 {[%emt 0:00:22]} Rc2+ {[%emt 0:00:22]} 108. Kd7 {[%emt 0:00:14]} Rc5 {[%emt 0:00:19]} 109. Bb3 {[%emt 0:00:17]} Rb5 {[%emt 0:00:55]} 110. Bg8 {[%emt 0:00:12]} Rb6 {[%emt 0:00:07]} 1/2-1/2

[Event "Najdorf Memorial-A 2022"]
[Site "Warsaw"]
[Date "2022.07.12"]
[Round "4.1"]
[White "Jarmula, Lukasz"]
[Black "Golubka, Petro"]
[Result "1-0"]
[ECO "B07"]
[WhiteElo "2452"]
[BlackElo "2378"]
[Annotator "ChessBase"]
[PlyCount "55"]
[EventDate "2022.07.09"]
[EventType "swiss"]
[EventCountry "POL"]
[SourceTitle "playchess.com"]
[Source "ChessBase"]
[SourceQuality "1"]
[TimeControl "40/5400+30:1800+30"]

1. d4 d6 {[%emt 0:05:10]} 2. e4 {[%emt 0:00:29]} Nf6 {[%emt 0:00:10]} 3. Nc3 {[%emt 0:00:06]} g6 {[%emt 0:00:02]} 4. Bf4 {[%emt 0:00:37]} c6 {[%emt 0:01:09]} 5. Nf3 {[%emt 0:00:34]} Bg4 {[%emt 0:00:09]} 6. h3 {[%emt 0:00:30]} Bxf3 {[%emt 0:00:04]} 7. Qxf3 {[%emt 0:00:07]} Bg7 {[%emt 0:00:05]} 8. O-O-O {[%emt 0:00:32]} Nfd7 {[%emt 0:07:31]} 9. g4 {[%emt 0:07:25]} Qa5 {[%emt 0:01:52]} 10. Kb1 {[%emt 0:01:29]} Na6 {[%emt 0:02:05]} 11. Bc4 {[%emt 0:02:21]} Rf8 {[%emt 0:01:48]} 12. Bb3 {[%emt 0:03:08]} O-O-O {[%emt 0:22:01]} 13. h4 {[%emt 0:09:56]} Qc7 {[%emt 0:16:24]} 14. Be3 {[%emt 0:06:33]} e6 {[%emt 0:04:33]} 15. h5 c5 16. e5 {[%emt 0:13:15]} d5 {[%emt 0:15:14]} 17. Nb5 {[%emt 0:05:09]} Qb6 {[%emt 0:00:36]} 18. c4 {[%emt 0:01:21]} f6 {[%emt 0:04:11]} 19. Qe2 {[%emt 0:08:25]} fxe5 {[%emt 0:03:06]} 20. cxd5 exd5 21. dxc5 {[%emt 0:01:24]} Ndxc5 {[%emt 0:02:33]} 22. Bxd5 {[%emt 0:00:35]} e4 {[%emt 0:01:07]} 23. Qc4 {[%emt 0:06:34]} Kb8 {[%emt 0:00:51]} 24. b4 {[%emt 0:05:38]} Rc8 {[%emt 0:00:23]} 25. Rc1 {[%emt 0:02:45]} Rf3 {[%emt 0:03:52]} 26. bxc5 {[%emt 0:02:37]} Qa5 {[%emt 0:00:11]} 27. c6 {[%emt 0:05:10]} bxc6 {[%emt 0:00:27]} 28. Bxa7+ {[%emt 0:00:20]} 1-0

[Event "Najdorf Memorial-A 2022"]
[Site "Warsaw"]
[Date "2022.07.12"]
[Round "4.1"]
[White "Janeczko, Jakub"]
[Black "Siekanska, Zuzanna"]
[Result "0-1"]
[ECO "A06"]
[WhiteElo "2080"]
[BlackElo "1712"]
[Annotator "ChessBase"]
[PlyCount "168"]
[EventDate "2022.07.09"]
[EventType "swiss"]
[EventCountry "POL"]
[SourceTitle "playchess.com"]
[Source "ChessBase"]
[SourceQuality "1"]
[TimeControl "40/5400+30:1800+30"]

1. Nf3 {[%emt 0:00:03]} d5 {[%emt 0:02:24]} 2. b3 {[%emt 0:00:51]} Nf6 {[%emt 0:00:53]} 3. Bb2 {[%emt 0:00:07]} e6 {[%emt 0:00:20]} 4. e3 {[%emt 0:00:06]} c5 {[%emt 0:02:00]} 5. Bb5+ {[%emt 0:01:32]} Bd7 {[%emt 0:00:21]} 6. Be2 {[%emt 0:00:05]} Nc6 {[%emt 0:01:15]} 7. c4 {[%emt 0:00:20]} Be7 {[%emt 0:02:01]} 8. cxd5 {[%emt 0:00:07]} exd5 {[%emt 0:00:26]} 9. d4 {[%emt 0:00:17]} O-O {[%emt 0:02:53]} 10. O-O {[%emt 0:00:05]} Re8 {[%emt 0:06:20]} 11. Nc3 {[%emt 0:03:27]} cxd4 {[%emt 0:13:27]} 12. Nxd4 {[%emt 0:00:09]} Ne5 {[%emt 0:00:46]} 13. Rc1 {[%emt 0:05:17]} a6 {[%emt 0:03:44]} 14. Nf3 {[%emt 0:01:16]} Nxf3+ {[%emt 0:07:34]} 15. Bxf3 {[%emt 0:00:17]} Be6 {[%emt 0:04:48]} 16. Qd4 {[%emt 0:07:37]} Bd6 {[%emt 0:05:45]} 17. h3 {[%emt 0:11:36]} Qd7 {[%emt 0:08:18]} 18. Bxd5 {[%emt 0:07:15]} Bxh3 {[%emt 0:06:18]} 19. Rfd1 {[%emt 0:10:02]} Be5 {[%emt 0:05:59]} 20. Qh4 {[%emt 0:01:11]} Bf5 {[%emt 0:01:19]} 21. Qg5 {[%emt 0:03:03]} Bg6 {[%emt 0:03:09]} 22. Na4 {[%emt 0:02:43]} Bxb2 {[%emt 0:01:08]} 23. Nxb2 {[%emt 0:00:11]} h6 {[%emt 0:00:59]} 24. Qg3 {[%emt 0:01:04]} Nxd5 {[%emt 0:00:38]} 25. Rc5 {[%emt 0:00:02]} Be4 {[%emt 0:03:27]} 26. f3 {[%emt 0:00:01]} b6 {[%emt 0:00:27]} 27. Rc4 {[%emt 0:00:29]} Qf5 {[%emt 0:02:16]} 28. fxe4 {[%emt 0:01:20]} Rxe4 {[%emt 0:00:22]} 29. Rf1 {[%emt 0:02:25]} Qe6 {[%emt 0:00:40]} 30. Rxe4 {[%emt 0:00:27]} Qxe4 {[%emt 0:00:08]} 31. Nc4 {[%emt 0:00:01]} Rf8 {[%emt 0:02:42]} 32. Rf3 {[%emt 0:02:23]} Qb1+ {[%emt 0:02:50]} 33. Kh2 {[%emt 0:00:01]} Qg6 {[%emt 0:00:57]} 34. Qe5 {[%emt 0:08:16]} Nf6 {[%emt 0:00:49]} 35. Qf4 {[%emt 0:00:49]} Ng4+ {[%emt 0:02:34]} 36. Kg1 {[%emt 0:00:20]} Rd8 {[%emt 0:01:25]} 37. Rf1 {[%emt 0:01:11]} b5 {[%emt 0:00:52]} 38. Ne5 {[%emt 0:00:02]} Nxe5 {[%emt 0:00:30]} 39. Qxe5 {[%emt 0:00:06]} Rd2 {[%emt 0:00:38]} 40. Qe8+ {[%emt 0:00:00]} Kh7 {[%emt 0:00:00]} 41. Rf2 {[%emt 0:00:02]} Rd1+ {[%emt 0:02:16]} 42. Kh2 {[%emt 0:00:27]} Qh5+ {[%emt 0:01:29]} 43. Kg3 {[%emt 0:00:06]} Qg5+ {[%emt 0:15:21]} 44. Kf3 {[%emt 0:00:02]} f5 {[%emt 0:01:10]} 45. g3 Qg4+ {[%emt 0:00:39]} 46. Kg2 {[%emt 0:01:15]} Re1 {[%emt 0:01:42]} 47. Rf4 {[%emt 0:02:29]} Qe2+ {[%emt 0:01:41]} 48. Rf2 {[%emt 0:00:02]} Qxe3 {[%emt 0:00:11]} 49. Qxe3 {[%emt 0:00:31]} Rxe3 {[%emt 0:00:08]} 50. Rxf5 {[%emt 0:00:14]} Re2+ {[%emt 0:00:08]} 51. Kh3 {[%emt 0:00:02]} Rxa2 {[%emt 0:00:19]} 52. Rc5 {[%emt 0:00:02]} Rb2 {[%emt 0:01:28]} 53. Rc6 {[%emt 0:00:01]} a5 {[%emt 0:00:30]} 54. Ra6 {[%emt 0:00:03]} Rxb3 {[%emt 0:00:30]} 55. Rxa5 {[%emt 0:00:01]} Kg6 {[%emt 0:00:24]} 56. Kh4 {[%emt 0:00:20]} Kf6 {[%emt 0:01:38]} 57. Ra6+ {[%emt 0:00:09]} Kf5 {[%emt 0:00:22]} 58. g4+ {[%emt 0:00:28]} Kf4 {[%emt 0:00:43]} 59. Rg6 {[%emt 0:00:03]} Rb1 {[%emt 0:00:50]} 60. Kh3 {[%emt 0:00:02]} Rh1+ {[%emt 0:00:41]} 61. Kg2 {[%emt 0:00:01]} Rh4 {[%emt 0:00:23]} 62. Rb6 {[%emt 0:00:02]} Rxg4+ {[%emt 0:00:15]} 63. Kh3 {[%emt 0:00:08]} Rg5 {[%emt 0:00:11]} 64. Kh4 {[%emt 0:00:07]} Ke4 {[%emt 0:00:43]} 65. Rd6 {[%emt 0:00:30]} Rd5 {[%emt 0:01:10]} 66. Rg6 {[%emt 0:00:06]} Rg5 {[%emt 0:01:16]} 67. Rd6 {[%emt 0:00:01]} Ke5 {[%emt 0:01:46]} 68. Rd7 {[%emt 0:00:09]} Kf6 {[%emt 0:00:25]} 69. Rd6+ {[%emt 0:00:13]} Kf7 {[%emt 0:00:05]} 70. Rd8 {[%emt 0:00:15]} Rg1 {[%emt 0:00:34]} 71. Rb8 {[%emt 0:00:12]} Rb1 {[%emt 0:00:06]} 72. Kh5 {[%emt 0:00:07]} Kf6 {[%emt 0:02:50]} 73. Rf8+ {[%emt 0:00:03]} Ke5 {[%emt 0:00:25]} 74. Rb8 {[%emt 0:00:02]} Kd4 {[%emt 0:00:17]} 75. Rc8 {[%emt 0:00:13]} b4 {[%emt 0:00:10]} 76. Kg6 {[%emt 0:00:10]} Rg1+ {[%emt 0:00:18]} 77. Kh7 {[%emt 0:00:05]} b3 {[%emt 0:00:27]} 78. Rd8+ {[%emt 0:00:08]} Kc3 {[%emt 0:00:15]} 79. Rc8+ {[%emt 0:00:03]} Kb2 {[%emt 0:00:07]} 80. Rb8 {[%emt 0:00:04]} Rg3 {[%emt 0:00:27]} 81. Kh8 {[%emt 0:00:15]} Kb1 {[%emt 0:00:13]} 82. Kh7 {[%emt 0:00:09]} b2 {[%emt 0:00:06]} 83. Kh8 {[%emt 0:00:26]} Ka2 {[%emt 0:00:04]} 84. Rg8 {[%emt 0:00:57]} b1=Q {[%emt 0:00:16]} 0-1

[Event "Najdorf Memorial-A 2022"]
[Site "Warsaw"]
[Date "2022.07.12"]
[Round "4.2"]
[White "Romanishin, Oleg M"]
[Black "Pacan-Milej, Kosma"]
[Result "1/2-1/2"]
[ECO "E62"]
[WhiteElo "2404"]
[BlackElo "2412"]
[Annotator "ChessBase"]
[PlyCount "37"]
[EventDate "2022.07.09"]
[EventType "swiss"]
[EventCountry "POL"]
[SourceTitle "playchess.com"]
[Source "ChessBase"]
[SourceQuality "1"]
[TimeControl "40/5400+30:1800+30"]

1. Nf3 {[%emt 0:00:15]} Nf6 {[%emt 0:00:18]} 2. g3 {[%emt 0:00:21]} g6 {[%emt 0:00:11]} 3. c4 {[%emt 0:01:04]} Bg7 {[%emt 0:00:07]} 4. Bg2 {[%emt 0:00:05]} O-O {[%emt 0:00:19]} 5. O-O {[%emt 0:00:25]} d6 {[%emt 0:00:14]} 6. d4 {[%emt 0:00:08]} Nc6 {[%emt 0:00:14]} 7. Nc3 {[%emt 0:00:06]} e5 {[%emt 0:00:13]} 8. d5 {[%emt 0:01:49]} Nb8 {[%emt 0:00:22]} 9. a4 {[%emt 0:06:41]} a5 {[%emt 0:17:29]} 10. c5 {[%emt 0:00:28]} Na6 {[%emt 0:01:13]} 11. cxd6 {[%emt 0:00:10]} cxd6 {[%emt 0:00:04]} 12. Nd2 {[%emt 0:01:11]} Nc5 {[%emt 0:06:41]} 13. Nc4 {[%emt 0:01:17]} b6 {[%emt 0:19:14]} 14. Nb5 {[%emt 0:00:48]} Ne8 {[%emt 0:00:05]} 15. Bd2 {[%emt 0:07:47]} Ba6 {[%emt 0:05:14]} 16. b4 {[%emt 0:03:14]} axb4 {[%emt 0:00:08]} 17. Bxb4 {[%emt 0:00:05]} e4 {[%emt 0:02:00]} 18. Ra3 {[%emt 0:08:43]} Bxb5 {[%emt 0:09:42]} 19. axb5 {[%emt 0:04:18]} 1/2-1/2